fUST/lending_fUST_20250601
["ID","MTS","AMOUNT","RATE_DAILY","PERIOD"]
[363620227,1748789448163,-430.0,0.00018356,2]
[363620229,1748789448173,-751.49,0.00018356,2]
[363620231,1748789448183,-430.0,0.00018356,2]
[363620233,1748789448192,-430.0,0.00018356,2]
[363620235,1748789448203,-158.14,0.00018356,2]
[363620237,1748789448213,-430.0,0.00018356,2]
[363620239,1748789448223,-553.86,0.00018356,2]
[363620241,1748789448234,-430.0,0.00018356,2]
[363620243,1748789448244,-430.0,0.00018356,2]
[363620246,1748789448254,-494.99,0.00018356,2]
[363620247,1748789448264,-430.0,0.00018356,2]
[363620249,1748789448274,-430.0,0.00018356,2]
[363620252,1748789448284,-590.49,0.00018356,2]
[363620254,1748789448295,-330.22309341,0.00018356,2]
[363620255,1748789448305,-1546.51,0.00018356,2]
[363620258,1748789448315,-1175.69,0.00018356,2]
[363620259,1748789448325,-430.0,0.00018356,2]
[363620262,1748789448335,-483.07380378,0.00018356,2]
[363620263,1748789448345,-430.0,0.00018356,2]
[363620266,1748789448355,-503.4,0.00018356,2]
[363620268,1748789448365,-430.0,0.00018356,2]
[363620269,1748789448375,-430.0,0.00018356,2]
[363620271,1748789448385,-430.0,0.00018356,2]
[363620273,1748789448395,-430.0,0.00018356,2]
[363620275,1748789448405,-430.0,0.00018356,2]
[363620277,1748789448414,-430.0,0.00018356,2]
[363620279,1748789448424,-430.0,0.00018356,2]
[363620281,1748789448433,-430.0,0.00018356,2]
[363620283,1748789448443,-430.0,0.00018356,2]
[363620285,1748789448454,-430.0,0.00018356,2]
[363620287,1748789448464,-695.72,0.00018356,2]
[363620289,1748789448475,-430.0,0.00018356,2]
[363620291,1748789448486,-430.0,0.00018356,2]
[363620293,1748789448497,-430.0,0.00018356,2]
[363620295,1748789448508,-430.0,0.00018356,2]
[363620297,1748789448519,-443.71294305,0.00018356,2]
[363620299,1748789448529,-430.0,0.00018356,2]
[363620301,1748789448539,-430.0,0.00018356,2]
[363620303,1748789448549,-688.43,0.00018356,2]
[363620305,1748789448559,-1186.93,0.00018356,2]
[363620307,1748789448568,-578.23,0.00018356,2]
[363620309,1748789448578,-496.26,0.00018356,2]
[363620311,1748789448588,-430.0,0.00018356,2]
[363620313,1748789448598,-430.0,0.00018356,2]
[363620315,1748789448608,-446.82,0.00018356,2]
[363620317,1748789448618,-430.0,0.00018356,2]
[363620319,1748789448628,-430.0,0.00018356,2]
[363620321,1748789448638,-430.0,0.00018356,2]
[363620323,1748789448647,-655.48,0.00018356,2]
[363620325,1748789448657,-570.52,0.00018356,2]
[363620327,1748789448667,-1837.67,0.00018356,2]
[363620329,1748789448677,-1074.26,0.00018356,2]
[363620331,1748789448688,-537.73,0.00018356,2]
[363620333,1748789448697,-430.0,0.00018356,2]
[363620335,1748789448707,-430.0,0.00018356,2]
[363620337,1748789448717,-500.0,0.00018445,2]
[363620339,1748789448727,-2920.54632385,0.0001859,2]
[363620341,1748789448737,-160.0,0.0001862,2]
[363620343,1748789448746,-430.0,0.0001863,2]
[363620345,1748789448756,-430.0,0.0001863,2]
[363620347,1748789448766,-430.0,0.0001863,2]
[363620349,1748789448775,-165.99033755,0.0001863,2]
[363620351,1748789448784,-430.0,0.0001863,2]
[363620353,1748789448795,-618.91,0.0001863,2]
[363620355,1748789448804,-1996.58,0.0001863,2]
[363620357,1748789448815,-430.0,0.0001863,2]
[363620359,1748789448824,-430.0,0.0001863,2]
[363620361,1748789448835,-430.0,0.0001863,2]
[363620363,1748789448847,-231.0,0.0001863,2]
[363620365,1748789448861,-477.5557266,0.0001863,2]
[363620367,1748789448871,-751.49,0.0001863,2]
[363620369,1748789448881,-430.0,0.0001863,2]
[363620371,1748789448892,-430.0,0.0001863,2]
[363620373,1748789448902,-430.0,0.0001863,2]
[363620384,1748789449010,-553.86,0.0001863,2]
[363620386,1748789449020,-430.0,0.0001863,2]
[363620389,1748789449040,-430.0,0.0001863,2]
[363620391,1748789449052,-494.99,0.0001863,2]
[363620393,1748789449063,-430.0,0.0001863,2]
[363620396,1748789449074,-491.62943883,0.0001863,2]
[363620398,1748789449085,-590.49,0.0001863,2]
[363620400,1748789449096,-1546.51,0.0001863,2]
[363620402,1748789449106,-1175.69,0.0001863,2]
[363620404,1748789449117,-430.0,0.0001863,2]
[363620406,1748789449127,-430.0,0.0001863,2]
[363620408,1748789449138,-503.4,0.0001863,2]
[363620410,1748789449149,-430.0,0.0001863,2]
[363620412,1748789449159,-538.56723499,0.0001863,2]
[363620414,1748789449170,-430.0,0.0001863,2]
[363620416,1748789449181,-430.0,0.0001863,2]
[363620419,1748789449192,-430.0,0.0001863,2]
[363620420,1748789449203,-430.0,0.0001863,2]
[363620423,1748789449213,-227.37290623,0.0001863,2]
[363620425,1748789449223,-430.0,0.0001863,2]
[363620427,1748789449232,-430.0,0.0001863,2]
[363620429,1748789449244,-695.72,0.0001863,2]
[363620431,1748789449254,-430.0,0.0001863,2]
[363620433,1748789449264,-430.0,0.0001863,2]
[363620435,1748789449274,-430.0,0.0001863,2]
[363620437,1748789449285,-430.0,0.0001863,2]
[363620439,1748789449295,-430.0,0.0001863,2]
[363620441,1748789449306,-266.04,0.0001863,2]
[363620443,1748789449315,-688.43,0.0001863,2]
[363620445,1748789449325,-1186.93,0.0001863,2]
[363620447,1748789449335,-496.26,0.0001863,2]
[363620449,1748789449352,-430.0,0.0001863,2]
[363620451,1748789449361,-430.0,0.0001863,2]
[363620453,1748789449371,-446.82,0.0001863,2]
[363620455,1748789449381,-430.0,0.0001863,2]
[363620457,1748789449391,-183.19,0.0001863,2]
[363620458,1748789449401,-430.0,0.0001863,2]
[363620460,1748789449411,-655.48,0.0001863,2]
[363620462,1748789449421,-570.52,0.0001863,2]
[363620464,1748789449431,-1837.67,0.0001863,2]
[363620466,1748789449441,-1074.26,0.0001863,2]
[363620468,1748789449451,-537.73,0.0001863,2]
[363620470,1748789449462,-430.0,0.0001863,2]
[363620472,1748789449472,-160.0,0.00018666,2]
[363620474,1748789449483,-423.51412927,0.00018666,2]
[363620476,1748789449493,-229.3709046,0.00018666,2]
[363620478,1748789449504,-160.0,0.00018666,2]
[363620480,1748789449515,-160.0,0.00018666,2]
[363620482,1748789449525,-842.5625,0.00018687,2]
[363620484,1748789449535,-212.80060342,0.00018687,2]
[363620486,1748789449545,-160.0,0.00018687,2]
[363620488,1748789449559,-160.0,0.00018687,2]
[363620490,1748789449569,-2920.54632385,0.00018831,2]
[363620492,1748789449579,-522.831951,0.000189,2]
[363620494,1748789449589,-430.0,0.00018904,2]
[363620496,1748789449598,-430.0,0.00018904,2]
[363620497,1748789449608,-224.34,0.00018904,2]
[363620499,1748789449618,-430.0,0.00018904,2]
[363620501,1748789449628,-618.91,0.00018904,2]
[363620503,1748789449637,-1996.58,0.00018904,2]
[363620505,1748789449648,-430.0,0.00018904,2]
[363620508,1748789449659,-430.0,0.00018904,2]
[363620509,1748789449669,-751.49,0.00018904,2]
[363620511,1748789449679,-430.0,0.00018904,2]
[363620514,1748789449690,-430.0,0.00018904,2]
[363620515,1748789449700,-553.86,0.00018904,2]
[363620518,1748789449710,-503.08,0.00018904,2]
[363620520,1748789449720,-430.0,0.00018904,2]
[363620521,1748789449730,-494.99,0.00018904,2]
[363620524,1748789449742,-590.49,0.00018904,2]
[363620526,1748789449752,-1546.51,0.00018904,2]
[363620527,1748789449762,-1175.69,0.00018904,2]
[363620529,1748789449773,-430.0,0.00018904,2]
[363620531,1748789449782,-503.4,0.00018904,2]
[363620533,1748789449792,-430.0,0.00018904,2]
[363620535,1748789449803,-430.0,0.00018904,2]
[363620537,1748789449813,-430.0,0.00018904,2]
[363620540,1748789449823,-430.0,0.00018904,2]
[363620541,1748789449832,-430.0,0.00018904,2]
[363620544,1748789449842,-695.72,0.00018904,2]
[363620546,1748789449855,-430.0,0.00018904,2]
[363620548,1748789449865,-430.0,0.00018904,2]
[363620549,1748789449875,-430.0,0.00018904,2]
[363620552,1748789449885,-430.0,0.00018904,2]
[363620553,1748789449895,-500.7,0.00018904,2]
[363620555,1748789449904,-688.43,0.00018904,2]
[363620557,1748789449913,-1186.93,0.00018904,2]
[363620559,1748789449923,-496.26,0.00018904,2]
[363620561,1748789449933,-430.0,0.00018904,2]
[363620563,1748789449942,-430.0,0.00018904,2]
[363620565,1748789449952,-446.82,0.00018904,2]
[363620568,1748789449963,-430.0,0.00018904,2]
[363620570,1748789449972,-430.0,0.00018904,2]
[363620572,1748789449982,-655.48,0.00018904,2]
[363620574,1748789449993,-570.52,0.00018904,2]
[363620576,1748789450003,-1837.67,0.00018904,2]
[363620578,1748789450013,-1074.26,0.00018904,2]
[363620580,1748789450023,-537.73,0.00018904,2]
[363620582,1748789450033,-430.0,0.00018904,2]
[363620584,1748789450043,-1366.40507753,0.00019,2]
[363620586,1748789450052,-2920.54632385,0.00019072,2]
[363620587,1748789450062,-500.0,0.00019178,2]
[363620590,1748789450072,-280.99805299,0.00019178,2]
[363620591,1748789450081,-500.0,0.00019178,2]
[363620593,1748789450091,-500.0,0.00019178,2]
[363620595,1748789450101,-500.0,0.00019178,2]
[363620597,1748789450111,-500.0,0.00019178,2]
[363620599,1748789450121,-500.0,0.00019178,2]
[363620601,1748789450130,-500.0,0.00019178,2]
[363620602,1748789450140,-500.0,0.00019178,2]
[363620603,1748789450150,-500.0,0.00019178,2]
[363620604,1748789450159,-500.0,0.00019178,2]
[363620605,1748789450169,-326.08422925,0.00019178,2]
[363620606,1748789450178,-500.0,0.00019178,2]
[363620607,1748789450188,-500.0,0.00019178,2]
[363620608,1748789450199,-500.0,0.00019178,2]
[363620609,1748789450208,-430.0,0.00019178,2]
[363620610,1748789450217,-430.0,0.00019178,2]
[363620611,1748789450227,-618.91,0.00019178,2]
[363620612,1748789450238,-1996.58,0.00019178,2]
[363620613,1748789450249,-445.27,0.00019178,2]
[363620614,1748789450259,-430.0,0.00019178,2]
[363620615,1748789450268,-751.49,0.00019178,2]
[363620616,1748789450279,-430.0,0.00019178,2]
[363620617,1748789450289,-430.0,0.00019178,2]
[363620618,1748789450299,-553.86,0.00019178,2]
[363620619,1748789450309,-430.0,0.00019178,2]
[363620620,1748789450319,-494.99,0.00019178,2]
[363620621,1748789450329,-590.49,0.00019178,2]
[363620622,1748789450339,-1546.51,0.00019178,2]
[363620623,1748789450348,-1175.69,0.00019178,2]
[363620624,1748789450358,-430.0,0.00019178,2]
[363620625,1748789450368,-503.4,0.00019178,2]
[363620626,1748789450378,-283.62,0.00019178,2]
[363620627,1748789450388,-430.0,0.00019178,2]
[363620628,1748789450399,-387.92,0.00019178,2]
[363620629,1748789450409,-430.0,0.00019178,2]
[363620630,1748789450419,-430.0,0.00019178,2]
[363620631,1748789450428,-695.72,0.00019178,2]
[363620632,1748789450438,-430.0,0.00019178,2]
[363620633,1748789450448,-430.0,0.00019178,2]
[363620634,1748789450458,-430.0,0.00019178,2]
[363620635,1748789450467,-430.0,0.00019178,2]
[363620636,1748789450477,-688.43,0.00019178,2]
[363620637,1748789450488,-1186.93,0.00019178,2]
[363620638,1748789450498,-496.26,0.00019178,2]
[363620639,1748789450508,-430.0,0.00019178,2]
[363620640,1748789450518,-430.0,0.00019178,2]
[363620641,1748789450528,-446.82,0.00019178,2]
[363620642,1748789450538,-430.0,0.00019178,2]
[363620643,1748789450548,-357.01,0.00019178,2]
[363620644,1748789450558,-655.48,0.00019178,2]
[363620645,1748789450568,-570.52,0.00019178,2]
[363620646,1748789450578,-1837.67,0.00019178,2]
[363620647,1748789450588,-1074.26,0.00019178,2]
[363620648,1748789450599,-537.73,0.00019178,2]
[363620649,1748789450608,-500.0,0.00019178,2]
[363620650,1748789450618,-500.0,0.00019178,2]
[363620652,1748789450629,-430.0,0.00019178,2]
[363620654,1748789450638,-500.0,0.00019178,2]
[363620655,1748789450648,-500.0,0.00019178,2]
[363620657,1748789450657,-500.0,0.00019178,2]
[363620659,1748789450667,-546.29758782,0.00019178,2]
[363620661,1748789450676,-500.0,0.00019178,2]
[363620662,1748789450686,-500.0,0.00019178,2]
[363620664,1748789450696,-151.0,0.00019178,2]
[363620666,1748789450706,-173.899304,0.00019178,2]
[363620668,1748789450716,-156.587,0.00019233,2]
[363620670,1748789450726,-162.380719,0.00019288,2]
[363620671,1748789450737,-2920.54632385,0.00019314,2]
[363620673,1748789450748,-168.3888056,0.00019343,2]
[363620675,1748789450758,-1897.83612532,0.00019389,2]
[363620677,1748789450769,-174.61919141,0.00019398,2]
[363620679,1748789450779,-430.0,0.00019452,2]
[363620680,1748789450789,-430.0,0.00019452,2]
[363620681,1748789450799,-618.91,0.00019452,2]
[363620682,1748789450808,-1996.58,0.00019452,2]
[363620683,1748789450818,-265.27,0.00019452,2]
[363620684,1748789450828,-751.49,0.00019452,2]
[363620685,1748789450838,-430.0,0.00019452,2]
[363620686,1748789450852,-430.0,0.00019452,2]
[363620687,1748789450862,-553.86,0.00019452,2]
[363620688,1748789450872,-430.0,0.00019452,2]
[363620689,1748789450882,-494.99,0.00019452,2]
[363620690,1748789450893,-590.49,0.00019452,2]
[363620691,1748789450903,-1546.51,0.00019452,2]
[363620692,1748789450913,-1175.69,0.00019452,2]
[363620693,1748789450925,-430.0,0.00019452,2]
[363620694,1748789450934,-503.4,0.00019452,2]
[363620695,1748789450945,-430.0,0.00019452,2]
[363620696,1748789450955,-430.0,0.00019452,2]
[363620697,1748789450965,-430.0,0.00019452,2]
[363620698,1748789450975,-695.72,0.00019452,2]
[363620699,1748789450986,-285.42,0.00019452,2]
[363620700,1748789450997,-430.0,0.00019452,2]
[363620701,1748789451007,-250.01,0.00019452,2]
[363620702,1748789451017,-458.48,0.00019452,2]
[363620703,1748789451028,-688.43,0.00019452,2]
[363620704,1748789451038,-1186.93,0.00019452,2]
[363620705,1748789451047,-496.26,0.00019452,2]
[363620706,1748789451057,-202.41,0.00019452,2]
[363620707,1748789451067,-430.0,0.00019452,2]
[363620708,1748789451078,-446.82,0.00019452,2]
[363620709,1748789451087,-430.0,0.00019452,2]
[363620710,1748789451097,-655.48,0.00019452,2]
[363620711,1748789451107,-570.52,0.00019452,2]
[363620712,1748789451116,-1837.67,0.00019452,2]
[363620713,1748789451126,-1074.26,0.00019452,2]
[363620714,1748789451135,-537.73,0.00019452,2]
[363620715,1748789451145,-430.0,0.00019452,2]
[363620716,1748789451155,-181.08010149,0.00019453,2]
[363620717,1748789451165,-187.78006525,0.00019508,2]
[363620718,1748789451175,-2920.54632385,0.00019555,2]
[363620719,1748789451185,-178.59002559,0.00019561,2]
[363620720,1748789451195,-279.511,0.00019561,2]
[363620721,1748789451205,-194.72792766,0.00019563,2]
[363620722,1748789451215,-201.93286099,0.00019618,2]
[363620724,1748789451224,-209.40437684,0.00019673,2]
[363620726,1748789451235,-430.0,0.00019726,2]
[363620728,1748789451245,-430.0,0.00019726,2]
[363620730,1748789451255,-618.91,0.00019726,2]
[363620732,1748789451265,-1996.58,0.00019726,2]
[363620734,1748789451276,-751.49,0.00019726,2]
[363620736,1748789451286,-430.0,0.00019726,2]
[363620737,1748789451296,-201.71,0.00019726,2]
[363620738,1748789451403,-553.86,0.00019726,2]
[363620739,1748789451413,-430.0,0.00019726,2]
[363620740,1748789451422,-494.99,0.00019726,2]
[363620741,1748789451433,-590.49,0.00019726,2]
[363620742,1748789451443,-1546.51,0.00019726,2]
[363620743,1748789451452,-1175.69,0.00019726,2]
[363620744,1748789451462,-278.75,0.00019726,2]
[363620745,1748789451472,-503.4,0.00019726,2]
[363620746,1748789451482,-430.0,0.00019726,2]
[363620747,1748789451493,-430.0,0.00019726,2]
[363620748,1748789451504,-375.92,0.00019726,2]
[363620749,1748789451515,-695.72,0.00019726,2]
[363620750,1748789451525,-430.0,0.00019726,2]
[363620751,1748789451536,-688.43,0.00019726,2]
[363620752,1748789451546,-1186.93,0.00019726,2]
[363620753,1748789451557,-496.26,0.00019726,2]
[363620754,1748789451567,-430.0,0.00019726,2]
[363620755,1748789451577,-446.82,0.00019726,2]
[363620756,1748789451587,-430.0,0.00019726,2]
[363620757,1748789451597,-655.48,0.00019726,2]
[363620758,1748789451607,-570.52,0.00019726,2]
[363620759,1748789451617,-1837.67,0.00019726,2]
[363620760,1748789451628,-1074.26,0.00019726,2]
[363620761,1748789451639,-537.73,0.00019726,2]
[363620762,1748789451648,-194.43,0.00019726,2]
[363620763,1748789451658,-217.15233878,0.00019728,2]
[363620764,1748789451668,-282.30381527,0.00019783,2]
[363620765,1748789451679,-2920.54632385,0.00019797,2]
[363620766,1748789451688,-339.88545409,0.00019975,2]
[363620767,1748789451698,-649.21402904,0.00019975,2]
[363620768,1748789451708,-430.0,0.0002,2]
[363620769,1748789451718,-618.91,0.0002,2]
[363620770,1748789451728,-1996.58,0.0002,2]
[363620771,1748789451739,-751.49,0.0002,2]
[363620772,1748789451749,-430.0,0.0002,2]
[363620773,1748789451760,-553.86,0.0002,2]
[363620774,1748789451770,-430.0,0.0002,2]
[363620775,1748789451780,-494.99,0.0002,2]
[363620776,1748789451791,-590.49,0.0002,2]
[363620777,1748789451801,-1546.51,0.0002,2]
[363620778,1748789451811,-1175.69,0.0002,2]
[363620779,1748789451821,-503.4,0.0002,2]
[363620780,1748789451831,-430.0,0.0002,2]
[363620781,1748789451842,-553.3792538,0.0002,2]
[363620782,1748789451857,-695.72,0.0002,2]
[363620783,1748789451867,-430.0,0.0002,2]
[363620784,1748789451878,-688.43,0.0002,2]
[363620785,1748789451888,-1186.93,0.0002,2]
[363620786,1748789451898,-496.26,0.0002,2]
[363620787,1748789451908,-430.0,0.0002,2]
[363620788,1748789451919,-446.82,0.0002,2]
[363620789,1748789451931,-431.51226882,0.0002,2]
[363620791,1748789451940,-655.48,0.0002,2]
[363620793,1748789451950,-570.52,0.0002,2]
[363620795,1748789451960,-1837.67,0.0002,2]
[363620797,1748789451970,-2109.62463586,0.0002,2]
[363620799,1748789451980,-1074.26,0.0002,2]
[363620801,1748789451991,-537.73,0.0002,2]
[363620803,1748789452001,-2920.54632385,0.00020038,2]
[363620805,1748789452011,-167.76921185,0.00020063,2]
[363620806,1748789452020,-500.0,0.00020067,2]
[363620807,1748789452030,-279.695441,0.00020187,2]
[363620808,1748789452040,-500.0,0.00020259,2]
[363620809,1748789452050,-500.16902464,0.00020259,2]
[363620810,1748789452060,-168.73407253,0.00020259,2]
[363620811,1748789452070,-430.0,0.00020273,2]
[363620812,1748789452080,-618.91,0.00020273,2]
[363620813,1748789452090,-1996.58,0.00020273,2]
[363620814,1748789452100,-751.49,0.00020273,2]
[363620815,1748789452110,-430.0,0.00020273,2]
[363620816,1748789452120,-553.86,0.00020273,2]
[363620817,1748789452130,-494.99,0.00020273,2]
[363620818,1748789452141,-590.49,0.00020273,2]
[363620819,1748789452151,-1546.51,0.00020273,2]
[363620820,1748789452161,-1175.69,0.00020273,2]
[363620821,1748789452170,-503.4,0.00020273,2]
[363620822,1748789452180,-430.0,0.00020273,2]
[363620823,1748789452191,-695.72,0.00020273,2]
[363620824,1748789452200,-191.12576746,0.00020273,2]
[363620825,1748789452212,-688.43,0.00020273,2]
[363620826,1748789452221,-1186.93,0.00020273,2]
[363620827,1748789452231,-496.26,0.00020273,2]
[363620828,1748789452242,-430.0,0.00020273,2]
[363620829,1748789452252,-446.82,0.00020273,2]
[363620830,1748789452262,-655.48,0.00020273,2]
[363620831,1748789452272,-570.52,0.00020273,2]
[363620832,1748789452281,-1837.67,0.00020273,2]
[363620833,1748789452292,-1074.26,0.00020273,2]
[363620834,1748789452302,-537.73,0.00020273,2]
[363620835,1748789452312,-2920.54632385,0.00020279,3]
[363620836,1748789452322,-499.08564506,0.00020362,2]
[363620837,1748789452332,-259.80650372,0.00020362,2]
[363620838,1748789452342,-188.77363041,0.00020362,2]
[363620839,1748789452352,-500.0,0.00020362,2]
[363620840,1748789452363,-2920.54632385,0.00020521,3]
[363620841,1748789452373,-430.0,0.00020547,2]
[363620843,1748789452383,-618.91,0.00020547,2]
[363620844,1748789452394,-1996.58,0.00020547,2]
[363620847,1748789452404,-751.49,0.00020547,2]
[363620848,1748789452414,-430.0,0.00020547,2]
[363620850,1748789452424,-553.86,0.00020547,2]
[363620852,1748789452435,-494.99,0.00020547,2]
[363620854,1748789452444,-590.49,0.00020547,2]
[363620856,1748789452454,-1546.51,0.00020547,2]
[363620859,1748789452464,-1175.69,0.00020547,2]
[363620861,1748789452474,-503.4,0.00020547,2]
[363620862,1748789452484,-430.0,0.00020547,2]
[363620863,1748789452494,-695.72,0.00020547,2]
[363620864,1748789452504,-688.43,0.00020547,2]
[363620865,1748789452514,-1186.93,0.00020547,2]
[363620866,1748789452523,-496.26,0.00020547,2]
[363620867,1748789452533,-430.0,0.00020547,2]
[363620868,1748789452542,-446.82,0.00020547,2]
[363620869,1748789452552,-655.48,0.00020547,2]
[363620870,1748789452561,-570.52,0.00020547,2]
[363620871,1748789452570,-1837.67,0.00020547,2]
[363620872,1748789452580,-1074.26,0.00020547,2]
[363620873,1748789452589,-537.73,0.00020547,2]
[363620874,1748789452598,-151.0,0.00020547,2]
[363620875,1748789452608,-247.45,0.000206,2]
[363620876,1748789452618,-418.86,0.000206,2]
[363620877,1748789452627,-2864.97,0.000206,2]
[363620878,1748789452637,-28763.52,0.000206,2]
[363620879,1748789452648,-151.0,0.000206,2]
[363620880,1748789452658,-1897.83612532,0.00020645,2]
[363620881,1748789452668,-2920.54632385,0.00020762,3]
[363620882,1748789452678,-1000.0,0.00020807,2]
[363620883,1748789452689,-430.0,0.00020821,2]
[363620884,1748789452699,-618.91,0.00020821,2]
[363620885,1748789452710,-1996.58,0.00020821,2]
[363620886,1748789452720,-751.49,0.00020821,2]
[363620887,1748789452730,-430.0,0.00020821,2]
[363620888,1748789452742,-553.86,0.00020821,2]
[363620889,1748789452751,-494.99,0.00020821,2]
[363620890,1748789452761,-590.49,0.00020821,2]
[363620891,1748789452770,-1546.51,0.00020821,2]
[363620892,1748789452780,-1175.69,0.00020821,2]
[363620893,1748789452791,-503.4,0.00020821,2]
[363620894,1748789452801,-430.0,0.00020821,2]
[363620895,1748789452810,-695.72,0.00020821,2]
[363620896,1748789452820,-688.43,0.00020821,2]
[363620897,1748789452830,-1186.93,0.00020821,2]
[363620898,1748789452840,-496.26,0.00020821,2]
[363620899,1748789452850,-430.0,0.00020821,2]
[363620900,1748789452860,-446.82,0.00020821,2]
[363620901,1748789452872,-655.48,0.00020821,2]
[363620902,1748789452881,-570.52,0.00020821,2]
[363620903,1748789452891,-1837.67,0.00020821,2]
[363620905,1748789452901,-1074.26,0.00020821,2]
[363620906,1748789452912,-537.73,0.00020821,2]
[363620908,1748789452921,-500.97,0.00021,2]
[363620910,1748789452931,-2920.54632385,0.00021003,4]
[363620912,1748789452943,-430.0,0.00021095,2]
[363620914,1748789452953,-618.91,0.00021095,2]
[363620916,1748789452962,-1996.58,0.00021095,2]
[363620918,1748789452972,-751.49,0.00021095,2]
[363620920,1748789452981,-458.89,0.00021095,2]
[363620922,1748789452993,-553.86,0.00021095,2]
[363620924,1748789453002,-494.99,0.00021095,2]
[363620926,1748789453011,-590.49,0.00021095,2]
[363620928,1748789453021,-1546.51,0.00021095,2]
[363620930,1748789453031,-1175.69,0.00021095,2]
[363620932,1748789453040,-503.4,0.00021095,2]
[363620934,1748789453049,-430.0,0.00021095,2]
[363620936,1748789453058,-695.72,0.00021095,2]
[363620938,1748789453068,-688.43,0.00021095,2]
[363620940,1748789453077,-1186.93,0.00021095,2]
[363620942,1748789453087,-496.26,0.00021095,2]
[363620944,1748789453096,-430.0,0.00021095,2]
[363620946,1748789453105,-446.82,0.00021095,2]
[363620947,1748789453115,-655.48,0.00021095,2]
[363620949,1748789453124,-570.52,0.00021095,2]
[363620951,1748789453134,-1837.67,0.00021095,2]
[363620952,1748789453143,-1074.26,0.00021095,2]
[363620954,1748789453154,-537.73,0.00021095,2]
[363620955,1748789453163,-2920.54632385,0.00021245,4]
[363620956,1748789453173,-1500.0,0.00021355,2]
[363620957,1748789453183,-430.0,0.00021369,2]
[363620958,1748789453192,-618.91,0.00021369,2]
[363620959,1748789453202,-1996.58,0.00021369,2]
[363620960,1748789453211,-751.49,0.00021369,2]
[363620961,1748789453221,-553.86,0.00021369,2]
[363620962,1748789453231,-494.99,0.00021369,2]
[363620963,1748789453241,-590.49,0.00021369,2]
[363620964,1748789453251,-1546.51,0.00021369,2]
[363620965,1748789453261,-1175.69,0.00021369,2]
[363620966,1748789453270,-503.4,0.00021369,2]
[363620967,1748789453279,-280.2,0.00021369,2]
[363620968,1748789453289,-695.72,0.00021369,2]
[363620969,1748789453298,-151.0,0.00021369,2]
[363620970,1748789453308,-688.43,0.00021369,2]
[363620971,1748789453318,-496.26,0.00021369,2]
[363620972,1748789453328,-1186.93,0.00021369,2]
[363620973,1748789453338,-501.43384318,0.00021369,2]
[363620974,1748789453348,-446.82,0.00021369,2]
[363620975,1748789453358,-655.48,0.00021369,2]
[363620976,1748789453367,-570.52,0.00021369,2]
[363620977,1748789453377,-1837.67,0.00021369,2]
[363620978,1748789453386,-1074.26,0.00021369,2]
[363620979,1748789453396,-537.73,0.00021369,2]
[363620980,1748789453407,-2920.54632385,0.00021486,5]